[Event "***Titled Tuesday 3|2 Blitz"]
[Site "Chess.com"]
[Date "2017.02.07"]
[Round "8"]
[White "GMBenjaminBok"]
[Black "gmwesley_so"]
[Result "1-0"]
[WhiteElo "2651"]
[BlackElo "2739"]
[TimeControl "180+2"]
[EndTime "14:57:45 PST"]
[Termination "GMBenjaminBok won by resignation"]

1. e4 {[%clk 0:03:02]} 1... e5 {[%clk 0:02:57.8]} 2. Nf3 {[%clk 0:03:02.9]} 2...
Nc6 {[%clk 0:02:59]} 3. Bc4 {[%clk 0:03:04.3]} 3... Bc5 {[%clk 0:02:59.8]} 4.
O-O {[%clk 0:03:05.8]} 4... Nf6 {[%clk 0:03:01.2]} 5. d3 {[%clk 0:03:07.2]} 5...
a6 {[%clk 0:03:00.9]} 6. c3 {[%clk 0:03:05.7]} 6... Ba7 {[%clk 0:03:02.2]} 7. a4
{[%clk 0:03:04.7]} 7... d6 {[%clk 0:03:01.5]} 8. Na3 {[%clk 0:03:03.6]} 8... O-O
{[%clk 0:03:02.2]} 9. Nc2 {[%clk 0:03:02.9]} 9... d5 {[%clk 0:02:58.5]} 10. exd5
{[%clk 0:03:02.6]} 10... Nxd5 {[%clk 0:03:00.4]} 11. Re1 {[%clk 0:02:59.3]}
11... Bg4 {[%clk 0:02:59.7]} 12. h3 {[%clk 0:02:57.1]} 12... Bh5 {[%clk
0:03:01]} 13. Bg5 {[%clk 0:02:49.3]} 13... f6 {[%clk 0:02:58.9]} 14. Be3 {[%clk
0:02:41.2]} 14... Kh8 {[%clk 0:02:44.8]} 15. Bxa7 {[%clk 0:02:41.7]} 15... Rxa7
{[%clk 0:02:46.4]} 16. d4 {[%clk 0:02:32.1]} 16... Nf4 {[%clk 0:02:47.4]} 17.
Bf1 {[%clk 0:02:02.3]} 17... Ra8 {[%clk 0:02:40.4]} 18. g3 {[%clk 0:02:02.1]}
18... Qd5 {[%clk 0:02:30]} 19. Re3 {[%clk 0:01:35.5]} 19... Ne6 {[%clk
0:02:30.7]} 20. c4 {[%clk 0:01:28.6]} 20... Qd8 {[%clk 0:02:28.4]} 21. dxe5
{[%clk 0:00:59.9]} 21... Nxe5 {[%clk 0:02:05.7]} 22. Be2 {[%clk 0:00:47]} 22...
Bxf3 {[%clk 0:01:50.2]} 23. Bxf3 {[%clk 0:00:47.8]} 23... Nxf3+ {[%clk
0:01:51.5]} 24. Qxf3 {[%clk 0:00:45.8]} 24... Ng5 {[%clk 0:01:53.4]} 25. Qg4
{[%clk 0:00:29.9]} 25... Qd2 {[%clk 0:01:54.4]} 26. Re2 {[%clk 0:00:28.4]} 26...
Qd3 {[%clk 0:01:55.2]} 27. Ne1 {[%clk 0:00:22.4]} 27... Qb3 {[%clk 0:01:47.4]}
28. Kg2 {[%clk 0:00:22.7]} 28... Rae8 {[%clk 0:01:45.1]} 29. Ra3 {[%clk
0:00:22.1]} 29... Qb6 {[%clk 0:01:38.1]} 30. Rae3 {[%clk 0:00:22.5]} 30... Rxe3
{[%clk 0:01:33.2]} 31. Rxe3 {[%clk 0:00:24.4]} 31... Qxb2 {[%clk 0:01:25.7]} 32.
h4 {[%clk 0:00:24.9]} 32... Nf7 {[%clk 0:01:26.4]} 33. Re7 {[%clk 0:00:24.8]}
33... Qb4 {[%clk 0:01:09.7]} 34. Rxc7 {[%clk 0:00:17.1]} 34... g6 {[%clk
0:00:48]} 35. Nf3 {[%clk 0:00:17.4]} 35... Qxa4 {[%clk 0:00:44.9]} 36. Qd4
{[%clk 0:00:17.3]} 36... Nh6 {[%clk 0:00:31.6]} 37. Qd6 {[%clk 0:00:15.8]} 37...
Kg8 {[%clk 0:00:29.8]} 38. Qd5+ {[%clk 0:00:16.2]} 38... Rf7 {[%clk 0:00:31]}
39. Rxb7 {[%clk 0:00:15.1]} 39... Qe8 {[%clk 0:00:27.3]} 40. c5 {[%clk
0:00:16.1]} 40... Nf5 {[%clk 0:00:20.8]} 41. c6 {[%clk 0:00:14.5]} 41... Ne7
{[%clk 0:00:21.6]} 42. Qe6 {[%clk 0:00:11.3]} 42... Kg7 {[%clk 0:00:20.4]} 43.
Rd7 {[%clk 0:00:08.6]} 43... Qf8 {[%clk 0:00:09.9]} 44. c7 {[%clk 0:00:08.5]}
44... Qc8 {[%clk 0:00:09.9]} 45. Rxe7 {[%clk 0:00:05.6]} 1-0

[Event "***Titled Tuesday 3|2 Blitz"]
[Site "Chess.com"]
[Date "2017.02.07"]
[Round "8"]
[White "pedromartinez91"]
[Black "Gergo85"]
[Result "1-0"]
[WhiteElo "2338"]
[BlackElo "2438"]
[TimeControl "180+2"]
[EndTime "14:57:59 PST"]
[Termination "pedromartinez91 won by resignation"]

1. d4 {[%clk 0:03:02]} 1... d5 {[%clk 0:03:00.7]} 2. Nf3 {[%clk 0:02:55]} 2...
Nf6 {[%clk 0:03:01.1]} 3. g3 {[%clk 0:02:55.8]} 3... g6 {[%clk 0:03:01.7]} 4.
Bg2 {[%clk 0:02:56.7]} 4... Bg7 {[%clk 0:03:03.1]} 5. O-O {[%clk 0:02:57.8]}
5... O-O {[%clk 0:03:04.1]} 6. c4 {[%clk 0:02:59]} 6... c6 {[%clk 0:03:05.3]} 7.
cxd5 {[%clk 0:02:59.6]} 7... cxd5 {[%clk 0:03:06.1]} 8. Nc3 {[%clk 0:03:00.4]}
8... Ne4 {[%clk 0:03:06.7]} 9. Qb3 {[%clk 0:02:58.3]} 9... Nc6 {[%clk
0:02:46.3]} 10. Be3 {[%clk 0:02:42.8]} 10... Na5 {[%clk 0:02:20.1]} 11. Qb4
{[%clk 0:02:26.3]} 11... Bf5 {[%clk 0:01:52.2]} 12. Nh4 {[%clk 0:02:07.2]} 12...
Nxc3 {[%clk 0:01:47.2]} 13. bxc3 {[%clk 0:01:56.2]} 13... Be6 {[%clk 0:01:36.6]}
14. Bf4 {[%clk 0:01:48.9]} 14... Rc8 {[%clk 0:01:25.2]} 15. Nf3 {[%clk 0:01:48]}
15... b6 {[%clk 0:01:05.1]} 16. Ng5 {[%clk 0:01:44.2]} 16... Rc4 {[%clk
0:00:58.7]} 17. Qb2 {[%clk 0:01:41.9]} 17... Bc8 {[%clk 0:00:53.9]} 18. Nf3
{[%clk 0:01:38.1]} 18... Ba6 {[%clk 0:00:47.7]} 19. Rfc1 {[%clk 0:01:38.4]}
19... Rc8 {[%clk 0:00:45.8]} 20. Nd2 {[%clk 0:01:36.1]} 20... Qd7 {[%clk
0:00:40.6]} 21. Qa3 {[%clk 0:01:33.9]} 21... Rfe8 {[%clk 0:00:33]} 22. Nb3
{[%clk 0:01:29.6]} 22... Bxe2 {[%clk 0:00:24.1]} 23. Nxa5 {[%clk 0:01:29.4]}
23... bxa5 {[%clk 0:00:25.2]} 24. Qxa5 {[%clk 0:01:29.9]} 24... Bc4 {[%clk
0:00:22.9]} 25. Rab1 {[%clk 0:01:21.6]} 25... f6 {[%clk 0:00:21.3]} 26. Rb4
{[%clk 0:01:19.6]} 26... e5 {[%clk 0:00:22.3]} 27. Be3 {[%clk 0:01:20.6]} 27...
Rb8 {[%clk 0:00:19.7]} 28. Rcb1 {[%clk 0:01:13.7]} 28... Rxb4 {[%clk 0:00:20.6]}
29. Rxb4 {[%clk 0:01:08.9]} 29... Bf8 {[%clk 0:00:20.3]} 30. Ra4 {[%clk
0:01:00.4]} 30... exd4 {[%clk 0:00:19.6]} 31. cxd4 {[%clk 0:01:01]} 31... Rb8
{[%clk 0:00:20.4]} 32. h3 {[%clk 0:00:59.1]} 32... Rb7 {[%clk 0:00:13.5]} 33.
Kh2 {[%clk 0:00:56.6]} 33... Be7 {[%clk 0:00:12.2]} 34. Rxc4 {[%clk 0:00:48.6]}
34... dxc4 {[%clk 0:00:12.7]} 35. Qd5+ {[%clk 0:00:49.6]} 35... Kg7 {[%clk
0:00:08.1]} 36. Qxb7 {[%clk 0:00:50]} 36... Qxb7 {[%clk 0:00:06.4]} 37. Bxb7
{[%clk 0:00:50.1]} 37... Ba3 {[%clk 0:00:08.1]} 38. Be4 {[%clk 0:00:48.9]} 38...
f5 {[%clk 0:00:08]} 39. Bc2 {[%clk 0:00:48]} 39... Kf6 {[%clk 0:00:09.4]} 40.
Kg2 {[%clk 0:00:49.2]} 40... Ke6 {[%clk 0:00:10]} 41. Kf3 {[%clk 0:00:47.8]}
41... Kd5 {[%clk 0:00:11.5]} 42. g4 {[%clk 0:00:48.8]} 42... fxg4+ {[%clk
0:00:11.3]} 43. hxg4 {[%clk 0:00:49.3]} 43... Bb2 {[%clk 0:00:12.5]} 44. Be4+
{[%clk 0:00:49.8]} 44... Ke6 {[%clk 0:00:13.3]} 45. Ke2 {[%clk 0:00:50.8]} 45...
h5 {[%clk 0:00:12.7]} 46. Bxg6 {[%clk 0:00:46.5]} 46... hxg4 {[%clk 0:00:09]}
47. Bh7 {[%clk 0:00:43.8]} 47... c3 {[%clk 0:00:03.2]} 48. Kd3 {[%clk 0:00:43]}
48... a5 {[%clk 0:00:03.6]} 49. Be4 {[%clk 0:00:42.7]} 49... a4 {[%clk
0:00:04.2]} 50. Bf4 {[%clk 0:00:42.6]} 50... a3 {[%clk 0:00:04.1]} 51. d5+
{[%clk 0:00:43.3]} 51... Kf6 {[%clk 0:00:05.5]} 52. d6 {[%clk 0:00:43.7]} 52...
Ke6 {[%clk 0:00:03.4]} 53. Bg3 {[%clk 0:00:39.5]} 53... c2 {[%clk 0:00:03.7]}
54. Kxc2 {[%clk 0:00:39.9]} 1-0

[Event "***Titled Tuesday 3|2 Blitz"]
[Site "Chess.com"]
[Date "2017.02.07"]
[Round "8"]
[White "JeremDev"]
[Black "pastouche06"]
[Result "0-1"]
[WhiteElo "2163"]
[BlackElo "2336"]
[TimeControl "180+2"]
[EndTime "14:58:13 PST"]
[Termination "pastouche06 won by resignation"]

1. e4 {[%clk 0:03:01.9]} 1... c6 {[%clk 0:03:00.9]} 2. d4 {[%clk 0:02:58]} 2...
d5 {[%clk 0:03:00.9]} 3. Nc3 {[%clk 0:02:58.4]} 3... dxe4 {[%clk 0:03:01.9]} 4.
Nxe4 {[%clk 0:03:00.3]} 4... Bf5 {[%clk 0:03:01.4]} 5. Ng3 {[%clk 0:02:59]} 5...
Bg6 {[%clk 0:03:02.2]} 6. h4 {[%clk 0:02:56.6]} 6... h6 {[%clk 0:03:03.2]} 7.
N1e2 {[%clk 0:02:54.9]} 7... e6 {[%clk 0:03:00.8]} 8. Nf4 {[%clk 0:02:55.8]}
8... Bh7 {[%clk 0:03:02]} 9. Bc4 {[%clk 0:02:56.7]} 9... Nf6 {[%clk 0:03:02.1]}
10. O-O {[%clk 0:02:56.2]} 10... Bd6 {[%clk 0:03:01.9]} 11. Ngh5 {[%clk
0:02:33.9]} 11... O-O {[%clk 0:02:49.2]} 12. Re1 {[%clk 0:02:04.9]} 12... Nxh5
{[%clk 0:02:25.5]} 13. Nxh5 {[%clk 0:02:04.9]} 13... Qxh4 {[%clk 0:02:04.2]} 14.
g3 {[%clk 0:02:02.7]} 14... Qh3 {[%clk 0:02:01.8]} 15. Bf4 {[%clk 0:01:14.8]}
15... Bxf4 {[%clk 0:01:33.8]} 16. Nxf4 {[%clk 0:01:16.7]} 16... Qf5 {[%clk
0:01:25.7]} 17. Bd3 {[%clk 0:01:04]} 17... Qf6 {[%clk 0:01:17.4]} 18. Bc4 {[%clk
0:00:44.5]} 18... Kh8 {[%clk 0:01:06.6]} 19. c3 {[%clk 0:00:44.4]} 19... Nd7
{[%clk 0:01:05.4]} 20. Qh5 {[%clk 0:00:42.9]} 20... Nb6 {[%clk 0:00:59.6]} 21.
Bf1 {[%clk 0:00:39.7]} 21... Nd5 {[%clk 0:00:59.9]} 22. Nd3 {[%clk 0:00:35.8]}
22... Qg5 {[%clk 0:00:49.2]} 23. Qh2 {[%clk 0:00:33]} 23... Bxd3 {[%clk
0:00:41.8]} 24. Bxd3 {[%clk 0:00:33.4]} 24... Qd2 {[%clk 0:00:43.3]} 25. Rad1
{[%clk 0:00:16.9]} 25... Qxb2 {[%clk 0:00:44.1]} 26. Qg2 {[%clk 0:00:09.4]}
26... Qxc3 {[%clk 0:00:42.9]} 27. Qe4 {[%clk 0:00:08.9]} 27... Nf6 {[%clk
0:00:42.8]} 28. Qf4 {[%clk 0:00:08.3]} 28... Rad8 {[%clk 0:00:39.3]} 29. Bb1
{[%clk 0:00:09.4]} 29... Rd5 {[%clk 0:00:33.2]} 30. Kg2 {[%clk 0:00:10.2]} 30...
Rh5 {[%clk 0:00:29.1]} 31. Re3 {[%clk 0:00:08.7]} 31... Qc4 {[%clk 0:00:28.8]}
32. Rde1 {[%clk 0:00:09.7]} 32... Qd5+ {[%clk 0:00:29.5]} 33. f3 {[%clk
0:00:11.2]} 33... Rd8 {[%clk 0:00:27.7]} 34. g4 {[%clk 0:00:12.6]} 34... Rg5
{[%clk 0:00:26.6]} 35. Kf2 {[%clk 0:00:08.9]} 35... Qxd4 {[%clk 0:00:26]} 36.
Be4 {[%clk 0:00:09.6]} 36... Qb2+ {[%clk 0:00:22.8]} 37. R1e2 {[%clk 0:00:10.5]}
37... Rd2 {[%clk 0:00:22.4]} 38. Kf1 {[%clk 0:00:06.7]} 38... Nxe4 {[%clk
0:00:21.4]} 39. Rxe4 {[%clk 0:00:07.2]} 39... Rxe2 {[%clk 0:00:18.3]} 40. Rxe2
{[%clk 0:00:08.3]} 40... Qb1+ {[%clk 0:00:17.5]} 41. Kf2 {[%clk 0:00:08.8]}
41... Qg6 {[%clk 0:00:17.9]} 42. Qb8+ {[%clk 0:00:09.2]} 42... Kh7 {[%clk
0:00:19]} 43. Qxb7 {[%clk 0:00:10.7]} 43... h5 {[%clk 0:00:18.8]} 44. gxh5
{[%clk 0:00:10.5]} 44... Rg2+ {[%clk 0:00:18.7]} 45. Ke3 {[%clk 0:00:11.9]}
45... Qg5+ {[%clk 0:00:19]} 46. Kd3 {[%clk 0:00:10.4]} 46... Qd5+ {[%clk
0:00:19.6]} 47. Ke3 {[%clk 0:00:11]} 47... Qe5+ {[%clk 0:00:20.7]} 0-1

[Event "***Titled Tuesday 3|2 Blitz"]
[Site "Chess.com"]
[Date "2017.02.07"]
[Round "8"]
[White "vellottiwizard"]
[Black "AndrewDGreen"]
[Result "0-1"]
[WhiteElo "2507"]
[BlackElo "2184"]
[TimeControl "180+2"]
[EndTime "14:58:13 PST"]
[Termination "AndrewDGreen won by resignation"]

1. e4 {[%clk 0:03:02]} 1... Nf6 {[%clk 0:03:00.9]} 2. e5 {[%clk 0:03:03]} 2...
Nd5 {[%clk 0:03:02.2]} 3. c4 {[%clk 0:03:04.7]} 3... Nb6 {[%clk 0:03:03.2]} 4.
d4 {[%clk 0:03:06.4]} 4... d6 {[%clk 0:03:04.4]} 5. exd6 {[%clk 0:03:08.3]} 5...
exd6 {[%clk 0:03:06.3]} 6. Nc3 {[%clk 0:03:08.7]} 6... Be7 {[%clk 0:03:07.9]} 7.
Bd3 {[%clk 0:03:09.9]} 7... O-O {[%clk 0:03:06.7]} 8. Nge2 {[%clk 0:03:11.4]}
8... Na6 {[%clk 0:03:07.9]} 9. a3 {[%clk 0:03:06.2]} 9... c6 {[%clk 0:03:01.6]}
10. O-O {[%clk 0:03:06.8]} 10... d5 {[%clk 0:02:55.1]} 11. c5 {[%clk 0:03:01.9]}
11... Nd7 {[%clk 0:02:56]} 12. Bf4 {[%clk 0:02:58.1]} 12... Bf6 {[%clk
0:02:55.4]} 13. b4 {[%clk 0:02:54.1]} 13... Nc7 {[%clk 0:02:56.2]} 14. Rb1
{[%clk 0:02:44.8]} 14... Ne6 {[%clk 0:02:54.1]} 15. Be3 {[%clk 0:02:44.5]} 15...
b6 {[%clk 0:02:53.3]} 16. cxb6 {[%clk 0:02:11.1]} 16... axb6 {[%clk 0:02:54.4]}
17. b5 {[%clk 0:02:12.6]} 17... c5 {[%clk 0:02:49.8]} 18. Nxd5 {[%clk
0:02:12.9]} 18... cxd4 {[%clk 0:02:40]} 19. Bc1 {[%clk 0:02:07.6]} 19... Ndc5
{[%clk 0:02:36.8]} 20. Nxf6+ {[%clk 0:01:53.8]} 20... Qxf6 {[%clk 0:02:38.3]}
21. Ng3 {[%clk 0:01:54]} 21... Bb7 {[%clk 0:02:32.2]} 22. Bc4 {[%clk 0:01:40.4]}
22... Rfd8 {[%clk 0:02:22]} 23. Re1 {[%clk 0:01:39.6]} 23... d3 {[%clk
0:02:06.7]} 24. Bd2 {[%clk 0:01:39.6]} 24... Nf4 {[%clk 0:02:01.1]} 25. Qg4
{[%clk 0:01:27.7]} 25... Rd4 {[%clk 0:01:29.3]} 26. Bc3 {[%clk 0:00:43.7]} 26...
Ne2+ {[%clk 0:01:27.2]} 27. Nxe2 {[%clk 0:00:18.2]} 27... Rxg4 {[%clk
0:01:26.1]} 28. Bxf6 {[%clk 0:00:20.1]} 28... gxf6 {[%clk 0:01:06.9]} 29. Ng3
{[%clk 0:00:13.4]} 29... Rxc4 {[%clk 0:01:06.9]} 30. Rbd1 {[%clk 0:00:14.7]}
30... Rd4 {[%clk 0:00:50.5]} 31. Nf5 {[%clk 0:00:14.6]} 31... Rd7 {[%clk
0:00:38.9]} 32. f3 {[%clk 0:00:14.3]} 32... Kf8 {[%clk 0:00:29.6]} 33. Re3
{[%clk 0:00:15.1]} 33... Re8 {[%clk 0:00:29]} 34. Rxe8+ {[%clk 0:00:15.6]} 34...
Kxe8 {[%clk 0:00:30.9]} 35. Kf2 {[%clk 0:00:17.3]} 35... Bd5 {[%clk 0:00:26.5]}
36. Re1+ {[%clk 0:00:10.7]} 36... Kf8 {[%clk 0:00:26.5]} 37. Ke3 {[%clk
0:00:11.4]} 37... Be6 {[%clk 0:00:23.2]} 38. Nd4 {[%clk 0:00:12.3]} 38... Bc4
{[%clk 0:00:15.9]} 39. Rd1 {[%clk 0:00:13]} 39... Bb3 {[%clk 0:00:11.8]} 40. Rd2
{[%clk 0:00:12.1]} 40... Bc4 {[%clk 0:00:11.5]} 41. Rd1 {[%clk 0:00:12.9]} 41...
Be6 {[%clk 0:00:10.6]} 42. g4 {[%clk 0:00:12.8]} 42... Ra7 {[%clk 0:00:11.2]}
43. Ra1 {[%clk 0:00:12.5]} 43... Ra4 {[%clk 0:00:08.9]} 44. Rf1 {[%clk
0:00:10.6]} 44... Rxa3 {[%clk 0:00:07.9]} 45. Kf4 {[%clk 0:00:12]} 45... d2
{[%clk 0:00:08.1]} 46. Rd1 {[%clk 0:00:13.1]} 46... Rd3 {[%clk 0:00:07.6]} 47.
Nxe6+ {[%clk 0:00:11.6]} 47... fxe6 {[%clk 0:00:09.1]} 48. h4 {[%clk 0:00:13]}
48... Kf7 {[%clk 0:00:08.3]} 49. g5 {[%clk 0:00:14.2]} 49... e5+ {[%clk
0:00:09.3]} 50. Kg4 {[%clk 0:00:14]} 50... Rd4+ {[%clk 0:00:08.3]} 51. Kg3
{[%clk 0:00:15]} 51... Nb3 {[%clk 0:00:09.2]} 52. gxf6 {[%clk 0:00:15]} 52...
Kxf6 {[%clk 0:00:10.3]} 53. h5 {[%clk 0:00:16.9]} 53... Na5 {[%clk 0:00:11.3]}
54. Kf2 {[%clk 0:00:17.7]} 54... Nc4 {[%clk 0:00:12.5]} 55. Ke2 {[%clk
0:00:19.2]} 55... Kf5 {[%clk 0:00:12.6]} 56. Rf1 {[%clk 0:00:19.4]} 56... Nb2
{[%clk 0:00:11.6]} 0-1

[Event "***Titled Tuesday 3|2 Blitz"]
[Site "Chess.com"]
[Date "2017.02.07"]
[Round "8"]
[White "Astaneh"]
[Black "Yaacovn"]
[Result "1-0"]
[WhiteElo "2516"]
[BlackElo "2592"]
[TimeControl "180+2"]
[EndTime "14:58:25 PST"]
[Termination "Astaneh won by resignation"]

1. d4 {[%clk 0:02:36.7]} 1... Nf6 {[%clk 0:02:59.2]} 2. c4 {[%clk 0:02:36.6]}
2... e6 {[%clk 0:02:59.9]} 3. Nf3 {[%clk 0:02:37.7]} 3... Bb4+ {[%clk
0:03:00.3]} 4. Nbd2 {[%clk 0:02:37]} 4... d5 {[%clk 0:02:59.9]} 5. e3 {[%clk
0:02:34.5]} 5... O-O {[%clk 0:03:00.3]} 6. a3 {[%clk 0:02:34.5]} 6... Be7 {[%clk
0:03:00.8]} 7. b4 {[%clk 0:02:32.2]} 7... Ne4 {[%clk 0:02:59.4]} 8. Bb2 {[%clk
0:02:31.6]} 8... c6 {[%clk 0:02:59.8]} 9. Nxe4 {[%clk 0:02:29.8]} 9... dxe4
{[%clk 0:03:00.3]} 10. Nd2 {[%clk 0:02:31.5]} 10... f5 {[%clk 0:03:00.9]} 11. f3
{[%clk 0:02:18.3]} 11... Bg5 {[%clk 0:02:43.7]} 12. Qe2 {[%clk 0:01:48.9]} 12...
exf3 {[%clk 0:02:41.8]} 13. gxf3 {[%clk 0:01:21.6]} 13... Bh4+ {[%clk
0:02:41.4]} 14. Kd1 {[%clk 0:01:23]} 14... Nd7 {[%clk 0:02:41.8]} 15. Rg1 {[%clk
0:01:18.3]} 15... a5 {[%clk 0:02:42.4]} 16. Kc2 {[%clk 0:01:13.7]} 16... Bf6
{[%clk 0:02:39.5]} 17. e4 {[%clk 0:01:13.3]} 17... axb4 {[%clk 0:02:38]} 18.
axb4 {[%clk 0:01:14.1]} 18... Rxa1 {[%clk 0:02:38.2]} 19. Bxa1 {[%clk
0:01:15.2]} 19... Qb6 {[%clk 0:02:20.3]} 20. Bc3 {[%clk 0:01:15.4]} 20... Qa7
{[%clk 0:02:14]} 21. c5 {[%clk 0:00:58.3]} 21... Qa2+ {[%clk 0:02:10.9]} 22. Kc1
{[%clk 0:00:51.1]} 22... Qa3+ {[%clk 0:02:09]} 23. Kc2 {[%clk 0:00:51.8]} 23...
Qa2+ {[%clk 0:01:54.1]} 24. Kc1 {[%clk 0:00:47.1]} 24... e5 {[%clk 0:01:31.9]}
25. Qc4+ {[%clk 0:00:43.1]} 25... Qxc4 {[%clk 0:01:32.4]} 26. Bxc4+ {[%clk
0:00:45]} 26... Kh8 {[%clk 0:01:31.6]} 27. d5 {[%clk 0:00:44.9]} 27... cxd5
{[%clk 0:01:18.4]} 28. Bxd5 {[%clk 0:00:44.1]} 28... Nb8 {[%clk 0:01:14.8]} 29.
Nc4 {[%clk 0:00:42.2]} 29... Nc6 {[%clk 0:01:11.3]} 30. Nd6 {[%clk 0:00:36.2]}
30... fxe4 {[%clk 0:01:03.2]} 31. fxe4 {[%clk 0:00:32.1]} 31... h6 {[%clk
0:00:59.2]} 32. Kb2 {[%clk 0:00:18.4]} 32... Nd4 {[%clk 0:00:43.8]} 33. Nxc8
{[%clk 0:00:18]} 33... Rxc8 {[%clk 0:00:43.5]} 34. Bxb7 {[%clk 0:00:19.2]} 34...
Rc7 {[%clk 0:00:41.5]} 35. Bd5 {[%clk 0:00:20.2]} 35... Nb5 {[%clk 0:00:39.7]}
36. Kb3 {[%clk 0:00:21.1]} 36... Ra7 {[%clk 0:00:39.4]} 37. Kc4 {[%clk
0:00:21.4]} 37... Na3+ {[%clk 0:00:39.9]} 38. Kd3 {[%clk 0:00:22.9]} 38... Nb5
{[%clk 0:00:40]} 39. Ra1 {[%clk 0:00:23.9]} 39... Rc7 {[%clk 0:00:32.7]} 40. Bb2
{[%clk 0:00:23.9]} 40... Bg5 {[%clk 0:00:29.9]} 41. Bxe5 {[%clk 0:00:23.7]}
41... Re7 {[%clk 0:00:30.5]} 42. Bb2 {[%clk 0:00:23.3]} 42... Nc7 {[%clk
0:00:28.9]} 43. Ra7 {[%clk 0:00:21.3]} 43... Nxd5 {[%clk 0:00:27.6]} 44. Ra8+
{[%clk 0:00:22.5]} 44... Kh7 {[%clk 0:00:28.5]} 45. exd5 {[%clk 0:00:23.8]}
45... Re3+ {[%clk 0:00:28.9]} 46. Kc4 {[%clk 0:00:25]} 46... Re2 {[%clk
0:00:29]} 47. Bd4 {[%clk 0:00:24.4]} 47... Rxh2 {[%clk 0:00:28.5]} 48. d6 {[%clk
0:00:23.7]} 48... h5 {[%clk 0:00:20.1]} 49. d7 {[%clk 0:00:24.3]} 49... h4
{[%clk 0:00:20.9]} 50. c6 {[%clk 0:00:20.7]} 50... h3 {[%clk 0:00:20.7]} 51. c7
{[%clk 0:00:20.3]} 51... Rc2+ {[%clk 0:00:21.1]} 52. Bc3 {[%clk 0:00:21.5]}
52... h2 {[%clk 0:00:20.3]} 53. d8=Q {[%clk 0:00:20.1]} 53... h1=Q {[%clk
0:00:14.8]} 54. Qh8+ {[%clk 0:00:19.7]} 54... Kg6 {[%clk 0:00:15.7]} 55. Qxh1
{[%clk 0:00:21.6]} 1-0

[Event "***Titled Tuesday 3|2 Blitz"]
[Site "Chess.com"]
[Date "2017.02.07"]
[Round "8"]
[White "Sanan_Sjugirov"]
[Black "EltajSafarli"]
[Result "0-1"]
[WhiteElo "2656"]
[BlackElo "2866"]
[TimeControl "180+2"]
[EndTime "14:58:48 PST"]
[Termination "EltajSafarli won by resignation"]

1. d4 {[%clk 0:03:02]} 1... Nf6 {[%clk 0:03:00.9]} 2. Nf3 {[%clk 0:03:03.1]}
2... g6 {[%clk 0:03:01.1]} 3. Bg5 {[%clk 0:03:04.2]} 3... Bg7 {[%clk 0:03:02.5]}
4. Nbd2 {[%clk 0:03:05.3]} 4... O-O {[%clk 0:03:02.7]} 5. e3 {[%clk 0:03:06.4]}
5... d6 {[%clk 0:03:02.8]} 6. Bc4 {[%clk 0:03:07]} 6... c5 {[%clk 0:03:02.9]} 7.
c3 {[%clk 0:03:06.4]} 7... Nc6 {[%clk 0:03:00.6]} 8. O-O {[%clk 0:03:04.3]} 8...
a6 {[%clk 0:02:54.1]} 9. a4 {[%clk 0:03:01.9]} 9... Bf5 {[%clk 0:02:50.5]} 10.
d5 {[%clk 0:02:35.6]} 10... Na5 {[%clk 0:02:48]} 11. Ba2 {[%clk 0:02:36.1]}
11... Qb6 {[%clk 0:02:32.9]} 12. Bxf6 {[%clk 0:02:21.7]} 12... Bxf6 {[%clk
0:02:34.8]} 13. e4 {[%clk 0:02:22.8]} 13... Bg4 {[%clk 0:02:36.3]} 14. Rb1
{[%clk 0:02:22]} 14... Bxf3 {[%clk 0:02:32]} 15. Qxf3 {[%clk 0:02:18]} 15... Bg5
{[%clk 0:02:28.8]} 16. Qe2 {[%clk 0:02:11.4]} 16... Bxd2 {[%clk 0:02:25.6]} 17.
Qxd2 {[%clk 0:02:13.3]} 17... c4 {[%clk 0:02:27.2]} 18. Qe2 {[%clk 0:02:10.1]}
18... Qc5 {[%clk 0:02:24.9]} 19. Rbd1 {[%clk 0:02:10]} 19... b5 {[%clk
0:02:25.4]} 20. axb5 {[%clk 0:02:07.6]} 20... axb5 {[%clk 0:02:27.3]} 21. Bb1
{[%clk 0:02:06.2]} 21... Nb7 {[%clk 0:02:12.8]} 22. Rfe1 {[%clk 0:02:00.9]}
22... b4 {[%clk 0:02:06.8]} 23. Rd4 {[%clk 0:01:52.4]} 23... Rfc8 {[%clk
0:02:02]} 24. e5 {[%clk 0:01:30.4]} 24... bxc3 {[%clk 0:02:01.5]} 25. bxc3
{[%clk 0:01:31.1]} 25... dxe5 {[%clk 0:02:03.1]} 26. Qxe5 {[%clk 0:01:32.5]}
26... Nd6 {[%clk 0:02:04.7]} 27. h4 {[%clk 0:01:16.4]} 27... Nb5 {[%clk
0:01:58.3]} 28. Rde4 {[%clk 0:00:56.7]} 28... Rc7 {[%clk 0:01:49.7]} 29. h5
{[%clk 0:00:47.9]} 29... Qd6 {[%clk 0:01:50.6]} 30. hxg6 {[%clk 0:00:48]} 30...
hxg6 {[%clk 0:01:44.1]} 31. Qg5 {[%clk 0:00:43.1]} 31... Qf6 {[%clk 0:01:44.6]}
32. Qg3 {[%clk 0:00:42.3]} 32... Qxc3 {[%clk 0:01:41.1]} 33. R4e3 {[%clk
0:00:39.1]} 33... Qf6 {[%clk 0:01:38.3]} 34. Bxg6 {[%clk 0:00:35.4]} 34... fxg6
{[%clk 0:01:08.3]} 35. Re6 {[%clk 0:00:35.7]} 35... Ra1 {[%clk 0:01:09.8]} 36.
Rxa1 {[%clk 0:00:19.5]} 36... Qxa1+ {[%clk 0:01:11.7]} 37. Kh2 {[%clk 0:00:21]}
37... Qh8+ {[%clk 0:01:06]} 38. Kg1 {[%clk 0:00:22]} 38... Qa1+ {[%clk 0:01:07]}
39. Kh2 {[%clk 0:00:23.4]} 39... Kf8 {[%clk 0:01:06.4]} 40. Rxg6 {[%clk
0:00:20.7]} 40... Qh8+ {[%clk 0:01:06.3]} 41. Kg1 {[%clk 0:00:21.7]} 41... Qa1+
{[%clk 0:01:01.2]} 42. Kh2 {[%clk 0:00:22.7]} 42... Qh8+ {[%clk 0:01:02.7]} 43.
Kg1 {[%clk 0:00:24.1]} 43... Nd6 {[%clk 0:01:04.2]} 44. Qf3+ {[%clk 0:00:04.5]}
44... Nf7 {[%clk 0:01:01.4]} 45. d6 {[%clk 0:00:03.6]} 45... exd6 {[%clk
0:00:58.6]} 46. Rxd6 {[%clk 0:00:03.8]} 46... Qe5 {[%clk 0:00:58.6]} 47. Rd8+
{[%clk 0:00:04.2]} 47... Ke7 {[%clk 0:00:56.5]} 48. Rd1 {[%clk 0:00:04.7]} 48...
c3 {[%clk 0:00:55]} 49. Rc1 {[%clk 0:00:05.7]} 49... c2 {[%clk 0:00:53.6]} 50.
Qa3+ {[%clk 0:00:06.7]} 50... Qd6 {[%clk 0:00:49.4]} 51. Qe3+ {[%clk 0:00:07.2]}
51... Kf8 {[%clk 0:00:46]} 52. Qe2 {[%clk 0:00:07.2]} 52... Qb4 {[%clk
0:00:41.9]} 53. g3 {[%clk 0:00:06.5]} 53... Qb2 {[%clk 0:00:42.3]} 54. Qd2
{[%clk 0:00:07.6]} 54... Qc3 {[%clk 0:00:40.1]} 55. Qe2 {[%clk 0:00:07.2]} 55...
Re7 {[%clk 0:00:37.5]} 56. Qf1 {[%clk 0:00:06]} 56... Qd2 {[%clk 0:00:36.6]} 57.
Kg2 {[%clk 0:00:05.9]} 57... Re2 {[%clk 0:00:33.1]} 58. Ra1 {[%clk 0:00:05.3]}
58... Kg7 {[%clk 0:00:32.8]} 59. Ra7 {[%clk 0:00:02.9]} 59... c1=Q {[%clk
0:00:29.9]} 0-1